bitfinex/quotes_ETHUSD_20260203
["timestamp","ask_amount","ask_price","bid_price","bid_amount"]
[1770150746353,0.1024,2312.8,2309.8,0.09020693]
[1770150746354,0.01512369,2312.0,2309.8,0.09020693]
[1770150746588,19.55212369,2311.9,2309.8,0.09020693]
[1770150746884,19.55212369,2311.9,2308.8,0.1059068]
[1770150746885,0.01512369,2309.6,2308.8,0.1059068]
[1770150747183,0.01512369,2309.5,2308.8,0.1059068]
[1770150747388,0.01512369,2309.9,2308.8,0.1059068]
[1770150747569,0.01512369,2309.3,2308.8,0.1059068]
[1770150747754,0.01512369,2308.9,2307.9,0.904]
[1770150748080,0.01512369,2309.3,2307.9,0.904]
[1770150748081,0.01512369,2311.3,2308.2,0.01512369]
[1770150748300,0.01512369,2311.4,2309.2,0.01512369]
[1770150748450,9.44279942,2313.7,2311.1,0.01512369]
[1770150748651,9.44279942,2313.7,2310.2,0.01512369]
[1770150748652,0.01512369,2311.7,2308.9,10.33167573]
[1770150748873,0.01512369,2312.5,2310.3,0.01512369]
[1770150749081,0.01512369,2312.5,2309.5,0.01512369]
[1770150749082,0.01512369,2313.6,2309.5,0.1024]
[1770150749248,1.0803336,2314.2,2311.7,0.01512369]
[1770150749249,0.01512369,2314.1,2311.7,0.01512369]
[1770150749447,0.01512369,2314.1,2311.3,12.62386843]
[1770150749448,0.01512369,2313.9,2311.3,12.62386843]
[1770150749687,0.01512369,2313.9,2311.2,0.904]
[1770150749688,0.01512369,2312.9,2311.2,0.904]
[1770150749984,0.01512369,2313.2,2307.8,0.01512369]
[1770150749985,0.01512369,2310.7,2307.8,0.01512369]
[1770150750199,0.01512369,2310.7,2307.2,0.01642769]
[1770150750200,0.01512369,2309.5,2307.2,0.01642769]
[1770150750352,0.01512369,2311.0,2308.8,0.01512369]
[1770150750552,0.01512369,2311.9,2309.1,0.01512369]
[1770150750779,0.01512369,2312.8,2310.0,0.01512369]
[1770150750780,0.01512369,2312.7,2310.0,0.01512369]
[1770150750955,0.01512369,2312.7,2309.3,0.11752369]
[1770150750956,0.01512369,2312.1,2310.2,0.01512369]
[1770150751155,0.01512369,2313.1,2309.7,0.01512369]
[1770150751156,0.01512369,2313.1,2310.8,0.01512369]
[1770150751361,0.01512369,2314.2,2311.1,0.01512369]
[1770150751553,9.42767573,2312.6,2309.5,0.01512369]
[1770150751750,0.01512369,2313.0,2310.2,0.01512369]
[1770150751751,0.94276757,2312.5,2310.2,0.01512369]
[1770150751982,0.94276757,2312.5,2309.8,0.01512369]
[1770150751983,0.01512369,2311.0,2308.6,0.01512369]
[1770150752150,0.01512369,2311.0,2307.9,1.946]
[1770150752151,0.01512369,2309.9,2307.9,1.946]
[1770150752350,0.01512369,2310.2,2307.9,1.946]
[1770150752685,0.01512369,2311.6,2308.8,0.01512369]
[1770150752985,9.44279942,2313.4,2310.3,0.01512369]
[1770150753183,1.09587762,2313.2,2310.7,0.01512369]
[1770150753390,9.42767573,2313.4,2310.6,0.01512369]
[1770150753391,0.01512369,2312.6,2310.6,0.01512369]
[1770150753552,1.08070946,2313.3,2311.6,0.01512369]
[1770150753751,0.01512369,2314.2,2311.9,0.01512369]
[1770150753950,0.01512369,2314.1,2312.1,0.01512369]
[1770150754151,0.44698403,2314.0,2312.0,0.01512369]
[1770150754358,9.42767573,2313.2,2310.5,0.01512369]
[1770150754562,9.42767573,2313.0,2310.5,0.01512369]
[1770150754870,0.1024,2311.9,2309.5,0.01512369]
[1770150755068,0.1024,2311.9,2308.8,0.01512369]
[1770150755069,0.1024,2311.1,2308.8,0.01512369]
[1770150755270,0.1024,2311.1,2308.5,0.01512369]
[1770150755461,0.1024,2311.1,2308.1,0.01512369]
[1770150755462,1.08168916,2311.2,2306.6,0.01512369]
[1770150755463,9.42767573,2308.8,2306.6,0.01512369]
[1770150755656,9.42767573,2308.8,2306.4,0.01512369]
[1770150755657,9.42767573,2308.8,2306.8,0.01512369]
[1770150755860,0.01512369,2310.3,2306.3,0.01512369]
[1770150755861,1.09681285,2311.2,2308.5,0.01512369]
[1770150756061,11.46209172,2311.9,2309.2,0.01512369]
[1770150756299,1.08140842,2311.8,2309.9,0.01512369]
[1770150756460,0.01512369,2310.8,2309.2,0.47853076]
[1770150756660,0.01512369,2310.8,2308.4,0.906]
[1770150756661,0.01512369,2311.4,2309.1,0.01512369]
[1770150756889,0.01512369,2310.4,2308.4,0.92112369]
[1770150757103,0.01512369,2310.4,2307.5,0.01512369]
[1770150757104,0.01512369,2308.9,2305.7,0.01512369]
[1770150757263,9.44279942,2308.7,2306.2,0.01512369]
[1770150757597,0.01512369,2308.8,2305.8,0.01512369]
[1770150757598,0.01512369,2308.4,2305.8,0.01512369]
[1770150757889,0.01512369,2309.0,2305.7,0.01512369]
[1770150757890,0.01512369,2309.4,2307.2,0.01512369]
[1770150758096,0.01512369,2311.3,2308.6,0.01512369]
[1770150758295,0.01512369,2312.2,2309.8,0.01512369]
[1770150758469,0.01512369,2312.2,2309.5,0.53528076]
[1770150758470,9.42767573,2312.0,2309.5,0.53528076]
[1770150758788,9.42767573,2312.0,2308.7,0.906]
[1770150758789,0.94427994,2311.9,2309.2,0.01512369]
[1770150758976,0.01512369,2311.9,2310.0,0.01512369]
[1770150759178,0.01512369,2312.4,2310.0,0.01512369]
[1770150759179,0.01512369,2312.6,2310.4,0.01512369]
[1770150759381,0.01512369,2312.3,2310.2,0.01512369]
[1770150759676,0.01512369,2312.3,2309.7,0.01512369]
[1770150759677,0.01512369,2311.5,2308.8,0.01512369]
[1770150759858,0.01512369,2311.2,2309.2,0.01512369]
[1770150760063,9.44279942,2312.5,2310.1,0.01512369]
[1770150760283,0.49908151,2312.7,2310.6,0.01512369]
[1770150760480,0.01512369,2312.1,2309.7,0.01512369]
[1770150760682,0.01512369,2311.4,2309.3,0.01512369]
[1770150760890,9.44279942,2311.7,2308.7,0.906]
[1770150760891,0.01512369,2310.6,2308.7,0.906]
[1770150761092,0.01512369,2309.7,2308.7,0.906]
[1770150761294,1.09709548,2310.6,2308.7,0.906]
[1770150761506,0.01512369,2308.6,2308.0,0.001]
[1770150761804,0.01512369,2308.9,2306.2,1.96512369]
[1770150761805,0.01512369,2308.9,2306.6,0.01512369]
[1770150761987,9.42767573,2309.9,2306.2,1.95]
[1770150761988,0.01512369,2308.3,2306.2,1.95]
[1770150762313,0.01512369,2308.7,2306.2,1.95]
[1770150762314,0.01512369,2310.2,2307.7,0.01512369]
[1770150762469,0.01512369,2307.9,2306.2,14.5129981]
[1770150762663,0.01512369,2307.6,2306.2,1.88912967]
[1770150762883,0.01512369,2307.2,2306.2,1.88912967]
[1770150763067,0.01512369,2307.4,2306.2,1.88912967]
[1770150763286,0.01512369,2308.4,2306.2,1.88912967]
[1770150763486,0.01512369,2307.6,2306.2,1.88912967]
[1770150763689,0.01512369,2307.7,2306.2,1.88912967]
[1770150763892,0.01512369,2307.1,2306.2,1.88912967]
[1770150764077,1.0827797,2308.9,2306.2,1.88912967]
[1770150764401,1.0827797,2308.9,2305.5,0.907]
[1770150764402,0.01512369,2306.9,2305.5,0.907]
[1770150764602,0.01512369,2306.9,2304.9,0.09020693]
[1770150764603,0.01512369,2305.9,2304.9,0.09020693]
[1770150764788,0.01512369,2306.3,2304.5,0.1059068]
[1770150764789,0.62594048,2306.8,2304.5,0.1059068]
[1770150765103,0.62594048,2306.8,2304.2,0.001]
[1770150765104,0.01512369,2304.5,2304.2,0.001]
[1770150765306,0.01512369,2304.5,2301.4,0.01512369]
[1770150765307,0.01512369,2303.9,2302.2,12.62386843]
[1770150765470,0.01512369,2304.3,2301.4,0.01512369]
[1770150765471,0.01512369,2303.0,2301.4,12.62386843]
[1770150765668,0.01512369,2303.4,2301.1,0.908]
[1770150765669,0.01512369,2304.2,2301.9,12.62386843]
[1770150765990,0.01512369,2304.4,2301.1,10.33567573]
[1770150765991,0.01512369,2303.3,2301.1,0.86735399]
[1770150766189,0.01512369,2302.9,2301.1,0.86735399]
[1770150766388,0.01512369,2303.0,2301.1,0.86735399]
[1770150766567,0.01512369,2302.8,2301.1,0.86735399]
[1770150766767,0.01512369,2303.1,2301.1,0.86735399]
[1770150767091,0.01512369,2303.0,2301.1,0.86735399]
[1770150767305,0.01512369,2303.0,2300.1,0.1059068]
[1770150767306,0.01512369,2301.4,2300.1,0.1059068]
[1770150767607,0.01512369,2301.5,2298.7,0.01512369]
[1770150767768,0.01512369,2301.2,2299.1,0.01512369]
[1770150767966,9.46147068,2301.8,2299.7,0.01512369]
[1770150768168,0.01738564,2301.6,2299.3,0.01738564]
[1770150768368,0.01738564,2301.5,2299.7,0.01738564]
[1770150768603,0.01738564,2302.0,2299.7,0.01738564]
[1770150768604,0.01738564,2302.3,2300.2,0.01738564]
[1770150768902,0.01738564,2302.3,2298.7,0.01738564]
[1770150768903,0.01738564,2301.7,2298.7,0.01738564]
[1770150769071,10.54705841,2302.9,2301.1,0.01738564]
[1770150769270,10.54705841,2302.9,2299.6,0.01738564]
[1770150769271,0.01738564,2301.8,2299.6,0.01738564]
[1770150769475,0.01738564,2301.5,2298.7,12.62386843]
[1770150769776,0.01738564,2301.2,2298.7,12.62386843]
[1770150769988,0.01738564,2300.7,2298.7,12.62386843]
[1770150770188,0.01738564,2300.7,2298.8,0.42469829]
[1770150770401,0.01738564,2300.7,2298.1,0.908]
[1770150770402,0.01738564,2299.6,2298.1,0.908]
[1770150770580,0.01738564,2298.7,2298.1,0.54117066]
[1770150770775,0.01738564,2298.7,2296.8,1.952]
[1770150770776,0.01738564,2298.5,2297.3,0.41004258]
[1770150770999,0.01738564,2298.5,2296.8,1.952]
[1770150771000,0.01738564,2297.6,2296.8,1.952]
[1770150771302,0.01738564,2297.6,2295.1,13.87484895]
[1770150771303,0.01738564,2296.9,2295.1,13.87484895]
[1770150771502,0.01738564,2297.3,2295.1,13.87484895]
[1770150771503,1.10509883,2298.5,2295.4,0.01738564]
[1770150771708,0.01738564,2296.6,2295.1,13.87484895]
[1770150771894,0.01738564,2296.1,2295.1,13.87484895]
[1770150772200,0.01738564,2296.3,2295.1,0.909]
[1770150772497,0.0547833,2295.1,2295.0,0.09020693]
[1770150772902,0.01738564,2296.8,2294.2,0.1024]
[1770150773082,13.92093933,2299.4,2294.7,0.01738564]
[1770150773083,0.01738564,2297.1,2294.7,0.01738564]
[1770150773283,0.01738564,2296.9,2295.0,0.01738564]
[1770150773483,0.01738564,2296.9,2294.3,0.53236038]
[1770150773484,0.01738564,2296.6,2294.3,0.53236038]
[1770150773796,0.01738564,2294.3,2292.9,0.01738564]
[1770150773995,0.01738564,2295.0,2292.7,12.6852796]
[1770150773996,0.01738564,2294.7,2292.7,12.6852796]
[1770150774303,0.01738564,2294.7,2292.0,0.91]
[1770150774304,0.01738564,2293.7,2292.0,0.91]
[1770150774505,0.01738564,2294.2,2292.1,0.01738564]
[1770150774704,0.01738564,2294.2,2292.0,0.91]
[1770150774705,0.01738564,2293.6,2292.0,0.91]
[1770150775013,0.01738564,2293.7,2290.7,2.24807772]
[1770150775014,0.01738564,2293.0,2290.7,2.24807772]
[1770150775176,0.61690605,2294.3,2291.9,0.01738564]
[1770150775177,0.66558365,2294.3,2291.9,0.01738564]
[1770150775373,0.11978564,2295.0,2292.5,0.01738564]
[1770150775576,1.32427406,2295.6,2294.0,0.01738564]
[1770150775577,0.65456865,2295.6,2294.0,0.01738564]
[1770150775874,0.65456865,2296.0,2295.0,0.001]
[1770150776074,4.3706869,2297.2,2295.0,0.001]
[1770150776075,0.01738564,2297.5,2295.2,0.01738564]
[1770150776273,0.01738564,2297.5,2295.3,0.01738564]
[1770150776274,0.01738564,2297.4,2295.3,0.01738564]
[1770150776509,1.1054302,2297.7,2295.6,0.01738564]
[1770150776510,0.65456865,2297.7,2295.6,0.01738564]
[1770150776670,0.01738564,2298.3,2295.0,0.001]
[1770150776671,0.01738564,2297.9,2295.0,0.001]
[1770150777006,9.46147068,2297.5,2295.4,0.01738564]
[1770150777206,0.94614707,2297.4,2295.7,0.01959546]
[1770150777375,9.48106614,2298.2,2295.5,0.01959546]
[1770150777376,0.01959546,2299.1,2296.9,0.01959546]
[1770150777576,1.10669377,2299.7,2297.7,0.01959546]
[1770150777903,1.10669377,2299.7,2297.4,0.01959546]
[1770150777904,1.49165577,2299.6,2297.4,0.01959546]
[1770150778091,1.49165577,2299.6,2296.1,0.01959546]
[1770150778092,1.0866258,2300.7,2298.3,0.01959546]
[1770150778280,1.30390083,2301.5,2297.9,0.01959546]
[1770150778281,9.46147068,2301.2,2297.9,0.01959546]
[1770150778482,0.94614707,2301.1,2298.9,0.01959546]
[1770150778674,4.36568785,2301.6,2300.3,0.01959546]
[1770150778675,0.0011,2301.6,2300.3,0.01959546]
[1770150778874,0.0011,2301.6,2299.8,0.01959546]
[1770150778875,0.01959546,2301.0,2298.6,0.01959546]
[1770150779077,0.01959546,2300.1,2296.5,0.01959546]
[1770150779306,0.01959546,2300.8,2297.7,0.01959546]
[1770150779307,0.01959546,2300.7,2297.7,0.01959546]
[1770150779605,0.01959546,2299.3,2296.5,0.01959546]
[1770150779805,0.01959546,2299.1,2296.7,0.01959546]
[1770150780003,0.01959546,2298.7,2296.5,0.01959546]
[1770150780309,0.01959546,2299.3,2296.4,0.912]
[1770150780310,0.01959546,2300.4,2297.4,0.01959546]
[1770150780530,0.01959546,2300.4,2298.7,0.01959546]
[1770150780531,0.01959546,2300.3,2298.7,0.01959546]
[1770150780675,0.01959546,2300.3,2297.4,9.48106614]
[1770150780676,0.01959546,2301.2,2298.4,0.01959546]
[1770150780883,0.01959546,2298.9,2296.5,0.01959546]
[1770150781091,0.02176089,2297.3,2296.4,0.912]
[1770150781280,0.02176089,2296.3,2295.0,0.001]
[1770150781474,0.02176089,2296.3,2294.1,0.001]
[1770150781475,0.02176089,2295.1,2294.1,0.001]
[1770150781710,0.02176089,2295.1,2292.3,1.96]
[1770150781711,0.47942775,2296.2,2292.5,0.02176089]
[1770150781908,1.11005539,2297.2,2294.0,0.02176089]
[1770150782111,1.11005539,2297.2,2293.1,0.02176089]
[1770150782112,0.02176089,2294.3,2292.5,0.36326725]
[1770150782311,0.02176089,2294.7,2292.5,0.36326725]
[1770150782312,0.02176089,2295.3,2292.7,0.02176089]
[1770150782618,0.02176089,2295.3,2292.3,3.07235491]
[1770150782619,0.02176089,2292.9,2291.7,0.912]
[1770150782906,0.02176089,2293.3,2291.7,0.912]
[1770150782907,0.02176089,2293.3,2291.9,0.60343304]
[1770150783076,0.02176089,2293.4,2291.7,0.912]
[1770150783277,0.02176089,2294.3,2291.7,0.912]
[1770150783503,0.02176089,2294.3,2290.1,0.02176089]
[1770150783504,0.02176089,2292.7,2290.1,0.02176089]
[1770150783699,0.02176089,2292.7,2289.6,1.96]
[1770150783700,0.02176089,2292.1,2289.6,1.96]
[1770150783909,0.551565,2293.1,2290.7,0.02176089]
[1770150784113,0.02176089,2294.4,2290.7,0.02176089]
[1770150784114,0.02176089,2293.2,2291.9,0.02176089]
[1770150784338,0.02176089,2292.6,2289.7,1.11359685]
[1770150784538,0.02176089,2292.6,2290.2,0.912]
[1770150784539,0.02176089,2292.1,2290.2,0.912]
[1770150784822,0.4964525,2292.6,2290.7,0.02176089]
[1770150785020,0.02176089,2294.0,2292.2,0.02176089]
[1770150785021,0.45148195,2294.0,2292.2,0.02176089]
[1770150785220,9.48323157,2294.6,2292.1,0.02176089]
[1770150785221,0.4964525,2293.8,2292.1,0.02176089]
[1770150785538,0.02176089,2294.6,2293.0,0.02176089]
[1770150785539,0.4964525,2294.6,2293.0,0.02176089]
[1770150785831,1.11101532,2295.2,2292.6,0.913]
[1770150785832,0.02176089,2294.4,2292.6,0.913]
[1770150785980,0.02176089,2294.4,2291.3,10.77072639]
[1770150785981,0.02176089,2292.5,2290.4,0.02176089]
[1770150786184,0.02176089,2292.9,2290.1,0.02176089]
[1770150786185,0.02176089,2292.2,2290.7,9.46147068]
[1770150786486,13.38832044,2294.7,2290.1,1.09165538]
[1770150786487,0.66149529,2292.7,2291.1,0.02176089]
[1770150786688,1.60620474,2294.1,2292.2,0.02176089]
[1770150786910,9.48323157,2294.7,2292.3,0.913]
[1770150787090,0.02176089,2294.6,2292.6,0.02176089]
[1770150787285,0.02176089,2296.0,2293.7,0.02176089]
[1770150787525,0.02176089,2296.0,2293.5,0.02176089]
[1770150787526,0.02176089,2295.6,2293.5,0.02176089]
[1770150787726,0.54417434,2296.0,2293.5,0.02176089]
[1770150787727,0.02176089,2296.7,2294.5,0.02176089]
[1770150788076,0.02176089,2296.7,2293.1,0.1024]
[1770150788077,0.02176089,2296.4,2293.1,0.1024]
[1770150788185,1.11031005,2296.7,2295.1,0.02176089]
[1770150788186,0.95049925,2296.7,2295.1,0.02176089]
[1770150788382,0.02176089,2296.6,2295.1,0.913]
[1770150788617,0.02176089,2297.2,2295.1,0.913]
[1770150788812,0.02176089,2296.2,2295.1,0.913]
[1770150789031,0.02176089,2296.2,2293.2,0.02176089]
[1770150789032,9.48323157,2297.1,2295.0,0.02176089]
[1770150789183,9.48323157,2297.1,2293.5,0.913]
[1770150789184,0.02176089,2295.6,2293.5,0.913]
[1770150789386,0.02176089,2294.9,2293.5,0.913]
[1770150789603,0.02176089,2295.3,2293.5,0.913]
[1770150789604,0.02176089,2296.6,2293.6,1.08998953]
[1770150789922,0.02176089,2297.7,2295.3,0.02176089]
[1770150790097,0.02176089,2297.7,2295.4,1.963]
[1770150790098,0.02176089,2297.6,2295.4,1.963]
[1770150790288,0.02176089,2298.1,2295.4,1.963]
[1770150790289,0.02176089,2298.1,2295.8,0.2335703]
[1770150790617,0.02176089,2299.7,2296.6,0.25533119]
[1770150790821,0.02176089,2299.7,2296.2,0.02176089]
[1770150790822,0.02176089,2298.5,2295.9,0.913]
[1770150790986,0.02176089,2298.6,2295.9,0.913]
[1770150791193,0.02176089,2298.8,2295.9,0.913]
[1770150791194,0.02176089,2298.5,2295.9,0.913]
[1770150791391,0.02176089,2298.6,2296.3,0.02176089]
[1770150791695,0.02176089,2298.7,2296.8,0.02176089]
[1770150791893,1.08724014,2299.4,2297.1,0.02176089]
[1770150792089,1.08724014,2299.4,2295.9,2.02364981]
[1770150792090,0.02176089,2298.6,2295.9,2.02364981]
[1770150792291,0.02176089,2299.1,2295.9,2.02364981]
[1770150792292,0.02176089,2299.1,2296.9,0.02176089]
[1770150792522,1.49411932,2299.3,2297.9,0.02176089]
[1770150792696,9.46147068,2300.6,2297.9,0.02176089]
[1770150792697,0.02176089,2301.0,2298.4,0.02176089]
[1770150792902,0.02176089,2300.6,2298.6,0.02176089]
[1770150793111,0.02176089,2301.2,2298.6,0.02176089]
[1770150793112,0.0011,2301.6,2299.9,0.02176089]
[1770150793286,0.0011,2301.6,2299.6,0.02176089]
[1770150793287,0.58428249,2301.5,2299.6,0.02176089]
[1770150793490,0.02176089,2300.9,2298.5,2.876]
[1770150793707,0.02176089,2299.9,2298.5,2.876]
[1770150793905,0.02176089,2300.2,2298.5,2.876]
[1770150793906,0.02176089,2299.7,2298.5,2.876]
[1770150794122,0.02176089,2299.5,2298.5,2.876]
[1770150794331,0.02176089,2299.3,2298.5,2.876]
[1770150794632,1.10906559,2301.6,2298.6,0.2335703]
[1770150794805,1.10906559,2301.6,2298.5,2.876]
[1770150794806,0.02176089,2300.2,2298.5,2.876]
[1770150795006,0.02176089,2300.6,2298.5,2.876]
[1770150795007,0.02176089,2300.8,2298.9,0.2335703]
[1770150795185,0.02176089,2300.8,2298.5,3.1636]
[1770150795186,0.02176089,2299.3,2298.5,2.876]
[1770150795391,0.02176089,2299.3,2296.9,2.6698244]
[1770150795392,0.02176089,2298.3,2297.1,0.913]
[1770150795602,0.02176089,2297.6,2297.1,0.91]
[1770150795802,0.02176089,2298.0,2297.1,0.91]
[1770150795803,1.10900103,2299.5,2297.1,0.91]
[1770150796006,0.02176089,2298.2,2297.1,0.91]
[1770150796303,4.37082636,2299.4,2297.1,0.91]
[1770150796499,0.02176089,2298.1,2297.1,0.91]
[1770150796730,0.02176089,2298.5,2297.1,0.91]
[1770150796731,0.02176089,2299.4,2297.1,0.91]
[1770150796930,0.02176089,2298.5,2297.1,0.91]
[1770150797119,0.02176089,2298.1,2297.1,0.91]
[1770150797337,0.02176089,2297.0,2296.1,1.963]
[1770150797648,0.02176089,2297.0,2294.7,1.00104615]
[1770150797649,0.02176089,2296.4,2294.7,1.00104615]
[1770150797950,0.02176089,2296.8,2294.5,2.24924833]
[1770150797951,0.02176089,2297.9,2294.9,0.02176089]
[1770150798237,1.08809192,2297.6,2294.9,1.00104615]
[1770150798441,0.02176089,2297.2,2295.3,0.02176089]
[1770150798659,0.02176089,2297.2,2295.4,0.82522004]
[1770150798806,0.02176089,2297.2,2294.5,0.913]
[1770150798807,0.02176089,2296.0,2294.5,0.913]
[1770150799005,0.56403249,2297.1,2294.5,0.913]
[1770150799200,0.02176089,2297.5,2295.0,0.02176089]
[1770150799399,0.02176089,2297.5,2295.1,0.82839086]
[1770150799400,1.08832876,2297.1,2295.1,0.82839086]
[1770150799613,0.56810136,2297.0,2295.1,1.00104615]
[1770150799851,0.02176089,2297.1,2295.1,1.82943701]
[1770150800028,0.02176089,2295.8,2294.5,0.913]
[1770150800212,0.02176089,2295.1,2294.5,0.913]
[1770150800423,0.02176089,2294.7,2293.5,1.962]
[1770150800679,0.02176089,2295.1,2293.5,1.962]
[1770150800680,0.02176089,2296.3,2293.6,0.83127301]
[1770150800974,0.02176089,2295.5,2293.7,1.83231916]
[1770150801177,0.02176089,2296.3,2294.2,8.60596396]
[1770150801365,0.02176089,2296.1,2294.3,1.83231916]
[1770150801581,0.02176089,2296.0,2294.4,0.2335703]
[1770150801744,0.02176089,2296.0,2294.0,2.01161014]
[1770150801745,0.02176089,2295.5,2294.0,1.33624833]
[1770150801950,0.02176089,2294.5,2293.4,1.33724833]
[1770150802291,0.02176089,2295.7,2293.4,0.001]
[1770150802459,0.04268393,2293.3,2293.2,1.33624833]
[1770150802788,0.02176089,2296.2,2293.2,0.36017188]
[1770150802987,0.02176089,2296.7,2293.0,0.913]
[1770150802988,0.02176089,2294.7,2293.0,0.913]
[1770150803287,7.6266787,2295.7,2293.0,0.913]
[1770150803288,1.0886131,2296.5,2294.1,1.08975197]
[1770150803485,0.02176089,2297.0,2294.6,1.40513828]
[1770150803653,1.0881711,2297.5,2295.4,0.02176089]
[1770150803854,0.0011,2296.7,2295.6,0.25533119]
[1770150804056,0.0011,2296.7,2295.6,0.2335703]
[1770150804299,1.08788534,2298.1,2295.9,0.02176089]
[1770150804459,1.08788534,2298.1,2295.7,0.02176089]
[1770150804460,0.48425091,2297.8,2295.7,0.02176089]
[1770150804658,0.02176089,2297.1,2295.5,0.913]
[1770150804877,0.02176089,2297.1,2294.1,1.38337739]
[1770150804878,0.02176089,2296.1,2294.1,1.38337739]
[1770150805094,0.02176089,2296.9,2294.8,0.02176089]
[1770150805264,7.6266787,2297.6,2295.2,0.02176089]
[1770150805265,7.60491781,2297.6,2295.2,0.02176089]
[1770150805462,0.02176089,2298.3,2295.2,0.02176089]
[1770150805463,4.37261365,2298.6,2296.2,0.02176089]
[1770150805785,4.37261365,2298.6,2295.8,0.02176089]
[1770150805786,0.02176089,2297.9,2295.8,0.02176089]
[1770150805983,0.02176089,2297.8,2295.8,0.02176089]
[1770150806190,0.02176089,2297.8,2295.6,0.2335703]
[1770150806364,0.02176089,2298.2,2296.1,0.02176089]
[1770150806569,0.02176089,2298.2,2295.9,0.25533119]
[1770150806570,0.02176089,2298.1,2296.3,0.2335703]
[1770150806760,0.02176089,2298.1,2296.4,0.02176089]
[1770150806957,0.02176089,2298.7,2296.4,0.02176089]
[1770150807157,0.02176089,2298.3,2296.5,0.2335703]
[1770150807426,0.02176089,2298.9,2296.5,0.2335703]
[1770150807427,0.02176089,2299.5,2297.3,0.02176089]
[1770150807706,0.02176089,2299.9,2297.3,0.02176089]
[1770150807707,0.00160007,2300.4,2297.8,0.02176089]
[1770150807858,0.02176089,2299.8,2298.0,0.25533119]
[1770150808057,0.02176089,2300.6,2298.3,0.02176089]
[1770150808286,1.10813077,2301.3,2299.2,0.25533119]
[1770150808287,0.45275091,2301.3,2299.2,0.25533119]
[1770150808497,0.0011,2301.6,2299.6,0.2335703]
[1770150808709,0.0011,2301.6,2299.2,0.37137747]
[1770150808710,0.02176089,2301.0,2299.2,0.37137747]
[1770150808856,0.02176089,2301.0,2298.4,8.69563331]
[1770150808857,0.02176089,2299.5,2298.4,0.913]
[1770150809053,0.02176089,2299.3,2298.4,0.913]
[1770150809257,1.08742414,2299.1,2298.4,0.913]
[1770150809458,0.02176089,2299.1,2298.4,0.913]
[1770150809683,0.02176089,2299.4,2298.4,0.913]
[1770150809886,0.02176089,2299.4,2297.0,7.11907253]
[1770150809887,0.02176089,2298.1,2296.8,1.38337739]
[1770150810089,0.02176089,2298.1,2296.2,1.38337739]
[1770150810090,0.02176089,2297.5,2296.2,1.38337739]
[1770150810389,0.02176089,2296.9,2295.8,0.913]
[1770150810561,12.37445715,2300.6,2295.8,0.913]
[1770150810766,0.02176089,2297.4,2296.3,1.38337739]
[1770150810967,0.02176089,2296.8,2295.8,0.913]
[1770150811173,0.02176089,2297.2,2295.8,0.913]
[1770150811174,0.57592847,2297.7,2295.8,0.913]
[1770150811374,0.55416758,2297.7,2295.8,0.913]
[1770150811693,0.02176089,2297.4,2295.8,2.29637739]
[1770150811895,0.02176089,2297.4,2295.0,2.89209708]
[1770150811896,0.02176089,2295.2,2294.1,1.38337739]
[1770150812068,0.02176089,2295.6,2293.3,2.87033619]
[1770150812069,7.60491781,2296.7,2293.9,0.913]
[1770150812271,0.02176089,2294.7,2293.9,0.913]
[1770150812468,0.02176089,2296.2,2293.9,0.86936142]
[1770150812795,0.02176089,2297.2,2294.5,1.08956199]
[1770150812968,0.02176089,2297.8,2295.3,0.04352178]
[1770150812969,0.02176089,2296.9,2295.3,0.04352178]
[1770150813166,0.02176089,2296.7,2295.1,1.61694769]
[1770150813367,0.02176089,2297.4,2295.3,0.25533119]
[1770150813893,0.02176089,2297.2,2295.3,1.63870858]
[1770150814091,0.02176089,2297.2,2295.4,2.44709063]
[1770150814292,0.02176089,2297.2,2295.6,1.61694769]
[1770150814595,0.02176089,2296.3,2295.1,1.38337739]
[1770150814795,0.02176089,2296.3,2294.5,2.87033619]
[1770150814796,0.02176089,2295.7,2294.3,1.38337739]
[1770150814995,0.02176089,2296.1,2294.3,1.38337739]
[1770150814996,0.02176089,2297.3,2295.8,0.04352178]
[1770150815296,0.02176089,2297.3,2295.9,1.74378356]
[1770150815297,0.02176089,2296.9,2295.9,1.74378356]
[1770150815625,0.02176089,2296.5,2295.9,0.913]
[1770150815836,0.02176089,2296.0,2294.9,1.38337739]
[1770150816135,0.02176089,2296.4,2294.9,1.38337739]
[1770150816136,0.02176089,2297.6,2295.7,2.29637739]
[1770150816441,0.02176089,2297.6,2295.8,2.21528733]
[1770150816442,0.02176089,2296.9,2295.8,2.21528733]
[1770150816599,0.02176089,2296.9,2295.7,0.913]
[1770150816800,0.02176089,2297.0,2295.8,0.83432011]
[1770150817100,0.02176089,2297.0,2295.7,0.913]
[1770150817101,0.02176089,2295.9,2295.7,0.913]
[1770150817308,0.02176089,2295.5,2294.8,1.38337739]
[1770150817517,0.02176089,2295.0,2294.5,0.913]
[1770150817821,0.02176089,2295.4,2294.6,0.83729854]
[1770150818039,0.02176089,2295.9,2294.5,0.913]
[1770150818040,0.02176089,2296.6,2294.7,0.83729854]
[1770150818332,0.02176089,2296.6,2294.8,2.22067593]
[1770150818333,0.02176089,2295.9,2294.8,2.22067593]
[1770150818626,1.11138317,2296.7,2295.2,1.38337739]
[1770150818627,0.0011,2296.7,2295.2,1.38337739]
[1770150818789,0.0011,2296.7,2295.5,1.38337739]
[1770150819123,0.02176089,2297.9,2296.4,1.38337739]
[1770150819330,0.02176089,2298.5,2296.8,1.38337739]
[1770150819623,0.02176089,2298.5,2296.5,2.11268954]
[1770150819624,0.02176089,2297.4,2296.9,0.83729854]
[1770150819807,0.02176089,2297.7,2296.5,0.913]
[1770150820035,0.02176089,2297.7,2296.3,1.38337739]
[1770150820036,0.02176089,2296.8,2296.3,1.38337739]
[1770150820334,0.02176089,2296.8,2296.2,2.07506609]
[1770150820335,0.02176089,2296.9,2296.0,1.963]
[1770150820693,0.02176089,2297.8,2296.4,1.38337739]
[1770150820893,0.02176089,2298.3,2296.3,1.38337739]
[1770150820894,0.02176089,2297.4,2296.3,1.38337739]
[1770150821087,0.02176089,2296.8,2296.1,1.38337739]
[1770150821412,0.02176089,2296.8,2296.0,4.03806609]
[1770150821413,0.02176089,2296.8,2296.0,1.963]
[1770150821615,0.02176089,2296.0,2295.9,0.3610199]
[1770150821791,0.02176089,2295.7,2294.9,1.38337739]
[1770150821994,0.02176089,2295.7,2294.6,0.913]
[1770150821995,0.02176089,2295.0,2294.6,0.913]
[1770150822187,0.02176089,2295.3,2294.6,0.913]
[1770150822495,0.04366215,2294.4,2293.8,1.38337739]
[1770150822696,0.04366215,2294.4,2293.5,2.00400664]
[1770150822697,0.02176089,2294.0,2293.5,0.914]
[1770150823023,0.02176089,2294.2,2293.5,0.914]
[1770150823248,0.02176089,2294.3,2293.5,0.914]